fUST/lending_fUST_20240723
["ID","MTS","AMOUNT","RATE_DAILY","PERIOD"]
[332996103,1721736642015,-250.0,0.00010528,2]
[332996105,1721736642026,-250.0,0.00010556,2]
[332996108,1721736642038,-250.0,0.00010584,2]
[332996109,1721736642047,-250.0,0.00010612,2]
[332996111,1721736642058,-250.0,0.0001064,2]
[332996113,1721736642067,-250.0,0.00010668,2]
[332996115,1721736642077,-250.0,0.00010696,2]
[332996117,1721736642086,-587.0,0.00010873,2]
[332996119,1721736642095,-823.0,0.00011961,2]
[332996121,1721736642105,-1152.0,0.00013157,2]
[332996122,1721736642114,-150.0,0.00013221,2]
[332996123,1721736642124,-505.0,0.00013221,2]
[332996124,1721736642133,-200.0,0.00013425,2]
[332996125,1721736642143,-1409.0,0.00013435,2]
[332996126,1721736642152,-989.73945783,0.00013598,2]
[332996127,1721736642161,-191.41538237,0.00013598,2]
[332996128,1721736642171,-191289.18224186,0.00013687,2]
[332996191,1721736646604,-191.41538237,8.897e-05,2]
[332996192,1721736646616,-191.41538237,8.987e-05,2]
[332996194,1721736646625,-2895.65286889,0.000129,2]
[332996196,1721736646635,-2910.5818371,0.00013687,2]
[332996224,1721737727691,15509.56941314,0.0002,120]
[332996276,1721737832620,-600.0,8.378e-05,2]
[332996279,1721737832632,-250.0,8.736e-05,2]
[332996281,1721737832644,-705.23989656,9.502e-05,2]
[332996283,1721737832655,-191.41538237,9.502e-05,2]
[332996285,1721737832667,-203.45867797,9.599e-05,2]
[332996287,1721737832678,-300.0,9.998e-05,2]
[332996289,1721737832689,-300.0,9.998e-05,2]
[332996292,1721737832700,-156.65797586,9.999e-05,2]
[332996294,1721737832711,-154.76012181,9.999e-05,2]
[332996295,1721737832723,-154.86617689,9.999e-05,2]
[332996296,1721737832733,-493.72845005,9.999e-05,2]
[332996297,1721737832742,-156.44936091,9.999e-05,2]
[332996298,1721737832752,-189.73573259,9.999e-05,2]
[332996299,1721737832762,-533.38063441,9.999e-05,2]
[332996300,1721737832771,-726.77830691,9.999e-05,2]
[332996301,1721737832781,-179.60556637,9.999e-05,2]
[332996302,1721737832790,-154.76012181,9.999e-05,2]
[332996303,1721737832800,-567.99228217,9.999e-05,2]
[332996304,1721737832810,-160.00381439,9.999e-05,2]
[332996305,1721737832820,-968.14358809,9.999e-05,2]
[332996306,1721737832830,-257.98438268,9.999e-05,2]
[332996307,1721737832839,-519.06293676,9.999e-05,2]
[332996308,1721737832848,-600.24609405,9.999e-05,2]
[332996309,1721737832858,-154.76012181,9.999e-05,2]
[332996310,1721737832867,-805.6785335,9.999e-05,2]
[332996311,1721737832877,-279.35753325,9.999e-05,2]
[332996312,1721737832886,-193.55260034,9.999e-05,2]
[332996313,1721737832896,-180.29524211,9.999e-05,2]
[332996314,1721737832906,-195.15064218,9.999e-05,2]
[332996315,1721737832915,-240.55889109,9.999e-05,2]
[332996316,1721737832924,-663.56673998,9.999e-05,2]
[332996317,1721737832933,-291.45867184,9.999e-05,2]
[332996318,1721737832943,-848.53287184,9.999e-05,2]
[332996319,1721737832955,-341.69630942,9.999e-05,2]
[332996321,1721737832964,-531.35557493,9.999e-05,2]
[332996323,1721737832974,-403.32733275,9.999e-05,2]
[332996325,1721737832983,-194.61181113,9.999e-05,2]
[332996327,1721737832992,-208.55751505,9.999e-05,2]
[332996329,1721737833001,-319.40039305,9.999e-05,2]
[332996332,1721737833011,-459.16779533,9.999e-05,2]
[332996333,1721737833021,-181.22338865,9.999e-05,2]
[332996336,1721737833031,-413.48920953,9.999e-05,2]
[332996338,1721737833040,-154.76012181,9.999e-05,2]
[332996340,1721737833050,-209.65653934,9.999e-05,2]
[332996342,1721737833060,-778.87203636,9.999e-05,2]
[332996344,1721737833071,-246.25892465,9.999e-05,2]
[332996346,1721737833081,-154.76012181,9.999e-05,2]
[332996348,1721737833091,-154.90193854,9.999e-05,2]
[332996350,1721737833101,-154.76012181,9.999e-05,2]
[332996352,1721737833111,-154.76012181,9.999e-05,2]
[332996354,1721737833121,-783.26953764,9.999e-05,2]
[332996356,1721737833131,-157.64183891,9.999e-05,2]
[332996358,1721737833141,-404.34085405,9.999e-05,2]
[332996360,1721737833150,-162.90193781,9.999e-05,2]
[332996362,1721737833160,-154.76012181,9.999e-05,2]
[332996364,1721737833169,-154.76012181,9.999e-05,2]
[332996366,1721737833179,-201.273204,9.999e-05,2]
[332996368,1721737833189,-154.76012181,9.999e-05,2]
[332996370,1721737833199,-154.76012181,9.999e-05,2]
[332996372,1721737833209,-521.4865626,9.999e-05,2]
[332996374,1721737833220,-375.64530467,9.999e-05,2]
[332996376,1721737833230,-154.76012181,9.999e-05,2]
[332996378,1721737833239,-156.572996,9.999e-05,2]
[332996380,1721737833249,-196.26871937,9.999e-05,2]
[332996382,1721737833258,-154.76012181,9.999e-05,2]
[332996384,1721737833268,-542.52748339,9.999e-05,2]
[332996386,1721737833279,-188.04294313,9.999e-05,2]
[332996388,1721737833288,-154.76012181,9.999e-05,2]
[332996390,1721737833300,-154.76012181,9.999e-05,2]
[332996392,1721737833309,-154.76012181,9.999e-05,2]
[332996394,1721737833319,-248.83425172,9.999e-05,2]
[332996396,1721737833328,-154.76012181,9.999e-05,2]
[332996398,1721737833338,-154.76012181,9.999e-05,2]
[332996400,1721737833348,-202.0320422,9.999e-05,2]
[332996402,1721737833357,-154.76012181,0.0001,2]
[332996404,1721737833367,-287.48002697,0.0001,2]
[332996406,1721737833377,-860.12,0.00010959,2]
[332996408,1721737833387,-420.0,0.00010998,2]
[332996410,1721737833397,-420.0,0.00010998,2]
[332996412,1721737833408,-24900.0,0.00011351,2]
[332996414,1721737833420,-250.0,0.00011436,2]
[332996416,1721737833430,-250.0,0.00011467,2]
[332996418,1721737833440,-250.0,0.00011499,2]
[332996420,1721737833453,-250.0,0.0001153,2]
[332996422,1721737833463,-250.0,0.00011561,2]
[332996424,1721737833472,-250.0,0.00011593,2]
[332996426,1721737833482,-250.0,0.00011624,2]
[332996428,1721737833492,-250.0,0.00011655,2]
[332996430,1721737833502,-20901.97053323,0.00011681,2]
[332996432,1721737833514,-250.0,0.00011687,2]
[332996434,1721737833524,-250.0,0.00011718,2]
[332996436,1721737833534,-250.0,0.00011749,2]
[332996438,1721737833543,-250.0,0.00011781,2]
[332996440,1721737833554,-250.0,0.00011812,2]
[332996442,1721737833563,-250.0,0.00011844,2]
[332996444,1721737833573,-250.0,0.00011875,2]
[332996446,1721737833582,-5291.15174917,0.000119,2]
[332996486,1721737838687,-208822.11298083,0.000119,2]
[332996487,1721737838697,-250.0,0.00011906,2]
[332996488,1721737838709,-250.0,0.00011938,2]
[332996489,1721737838719,-250.0,0.00011969,2]
[332996490,1721737838728,-250.0,0.00012,2]
[332996491,1721737838739,-250.0,0.00012032,2]
[332996492,1721737838750,-587.0,0.00012098,2]
[332996493,1721737838760,-587.0,0.00012098,2]
[332996494,1721737838769,-20901.97053322,0.0001216,2]
[332996495,1721737838779,-20901.97053322,0.00012639,2]
[332996496,1721737838789,-107056.632365,0.00012665,2]
[332996497,1721737838798,-2533.69626027,0.000129,2]
[332996498,1721737838807,-2533.69626023,0.000129,2]
[332996500,1721737838817,-20901.97053322,0.00013118,2]
[332996501,1721737838827,-150.0,0.00013261,2]
[332996502,1721737838836,-4941.9389328,0.00013306,2]
[332996503,1721737838846,-823.0,0.00013307,2]
[332996504,1721737838857,-823.0,0.00013307,2]
[332996505,1721737838868,-367.37419225,0.00013387,2]
[332996506,1721737838877,-200.0,0.00013425,2]
[332996507,1721737838886,-736.75996205,0.00013497,2]
[332996508,1721737838896,-476.89703329,0.00013587,2]
[332996509,1721737838905,-20901.97053322,0.00013597,2]
[332996510,1721737838915,-1085.52178143,0.00013598,2]
[332996511,1721737838924,-107056.632365,0.00013677,2]
[332996512,1721737838933,-154.76012181,0.00013687,2]
[332996513,1721737838942,-92477.77983586,0.00013687,2]
[332996514,1721737838954,-202930.34156042,0.00013697,2]
[332996515,1721737838963,-151.0,0.00013697,2]
[332996516,1721737838972,-173.910764,0.00013697,2]
[332996517,1721737838981,-173.910764,0.00013697,2]
[332996518,1721737838991,-151.0,0.00013697,2]
[332996519,1721737839000,-2809.64,0.00013698,2]
[332996520,1721737839009,-756.14,0.00013698,2]
[332996521,1721737839019,-500.0,0.00013698,2]
[332996522,1721737839029,-874.06,0.00013698,2]
[332996523,1721737839039,-500.0,0.00013698,2]
[332996524,1721737839050,-179.35947835,0.00013698,2]
[332996525,1721737839060,-500.0,0.00013698,2]
[332996526,1721737839069,-500.0,0.00013698,2]
[332996527,1721737839078,-865.53,0.00013698,2]
[332996528,1721737839087,-3905.52,0.00013698,2]
[332996529,1721737839097,-1779.37,0.00013698,2]
[332996530,1721737839106,-2288.55,0.00013698,2]
[332996531,1721737839116,-500.0,0.00013698,2]
[332996532,1721737839125,-500.0,0.00013698,2]
[332996533,1721737839134,-500.0,0.00013698,2]
[332996534,1721737839143,-500.0,0.00013698,2]
[332996535,1721737839152,-500.0,0.00013698,2]
[332996536,1721737839162,-2921.73,0.00013698,2]
[332996537,1721737839171,-500.0,0.00013698,2]
[332996538,1721737839181,-500.0,0.00013698,2]
[332996539,1721737839190,-4071.18,0.00013698,2]
[332996540,1721737839199,-500.0,0.00013698,2]
[332996541,1721737839213,-500.0,0.00013698,2]
[332996542,1721737839223,-500.0,0.00013698,2]
[332996543,1721737839233,-942.56,0.00013698,2]
[332996544,1721737839244,-500.0,0.00013698,2]
[332996545,1721737839255,-540.55447703,0.00013698,2]
[332996546,1721737839264,-558.28,0.00013698,2]
[332996547,1721737839274,-500.0,0.00013698,2]
[332996548,1721737839283,-500.0,0.00013698,2]
[332996549,1721737839292,-500.0,0.00013698,2]
[332996550,1721737839301,-500.0,0.00013698,2]
[332996551,1721737839310,-500.0,0.00013698,2]
[332996552,1721737839319,-500.0,0.00013698,2]
[332996553,1721737839329,-517.97,0.00013698,2]
[332996554,1721737839339,-500.0,0.00013698,2]
[332996555,1721737839348,-500.0,0.00013698,2]
[332996556,1721737839357,-500.0,0.00013698,2]
[332996557,1721737839366,-500.0,0.00013698,2]
[332996558,1721737839375,-504.92000203,0.00013698,2]
[332996559,1721737839385,-860.04,0.00013698,2]
[332996560,1721737839395,-500.0,0.00013698,2]
[332996561,1721737839404,-500.0,0.00013698,2]
[332996562,1721737839413,-1828.4,0.00013698,2]
[332996563,1721737839425,-264.36,0.00013698,2]
[332996564,1721737839435,-500.0,0.00013698,2]
[332996565,1721737839446,-500.0,0.00013698,2]
[332996566,1721737839459,-500.0,0.00013698,2]
[332996567,1721737839470,-6287.71,0.00013698,2]
[332996568,1721737839480,-500.0,0.00013698,2]
[332996569,1721737839489,-1205.06,0.00013698,2]
[332996570,1721737839499,-500.0,0.00013698,2]
[332996571,1721737839510,-500.0,0.00013698,2]
[332996572,1721737839520,-500.0,0.00013698,2]
[332996573,1721737839530,-345.56143533,0.00013698,2]
[332996574,1721737839538,-500.0,0.00013698,2]
[332996575,1721737839548,-500.0,0.00013698,2]
[332996576,1721737839557,-500.0,0.00013698,2]
[332996577,1721737839566,-500.0,0.00013698,2]
[332996578,1721737839576,-500.0,0.00013698,2]
[332996579,1721737839586,-500.0,0.00013698,2]
[332996580,1721737839597,-500.0,0.00013698,2]
[332996581,1721737839606,-500.0,0.00013698,2]
[332996582,1721737839615,-500.0,0.00013698,2]
[332996583,1721737839624,-409.44,0.00013698,2]
[332996584,1721737839633,-500.0,0.00013698,2]
[332996585,1721737839642,-500.0,0.00013698,2]
[332996586,1721737839651,-500.0,0.00013698,2]
[332996587,1721737839662,-500.0,0.00013698,2]
[332996588,1721737839671,-500.0,0.00013698,2]
[332996589,1721737839681,-2616.28,0.00013698,2]
[332996590,1721737839690,-568.72,0.00013698,2]
[332996591,1721737839699,-162.58,0.00013698,2]
[332996592,1721737839710,-444.31,0.00013698,2]
[332996593,1721737839719,-500.0,0.00013698,2]
[332996594,1721737839728,-500.0,0.00013698,2]
[332996595,1721737839737,-500.0,0.00013698,2]
[332996596,1721737839747,-500.0,0.00013698,2]
[332996597,1721737839757,-343.67415429,0.00013698,2]
[332996598,1721737839766,-473.9,0.00013698,2]
[332996599,1721737839776,-500.0,0.00013698,2]
[332996600,1721737839785,-195.53,0.00013698,2]
[332996601,1721737839795,-503.79765142,0.00013698,2]
[332996602,1721737839804,-500.0,0.00013698,2]
[332996603,1721737839814,-500.0,0.00013698,2]
[332996604,1721737839823,-500.0,0.00013698,2]
[332996605,1721737839832,-500.0,0.00013698,2]
[332996606,1721737839841,-500.0,0.00013698,2]
[332996607,1721737839852,-500.0,0.00013698,2]
[332996608,1721737839862,-500.0,0.00013698,2]
[332996609,1721737839871,-500.0,0.00013698,2]
[332996610,1721737839882,-500.0,0.00013698,2]
[332996611,1721737839891,-500.0,0.00013698,2]
[332996612,1721737839900,-500.0,0.00013698,2]
[332996613,1721737839911,-500.0,0.00013698,2]
[332996614,1721737839922,-500.0,0.00013698,2]
[332996615,1721737839933,-500.0,0.00013698,2]
[332996616,1721737839942,-500.0,0.00013698,2]
[332996617,1721737839953,-500.0,0.00013698,2]
[332996618,1721737839964,-500.0,0.00013698,2]
[332996619,1721737839974,-500.0,0.00013698,2]
[332996620,1721737839983,-500.0,0.00013698,2]
[332996621,1721737839993,-500.0,0.00013698,2]
[332996622,1721737840003,-500.0,0.00013698,2]
[332996623,1721737840012,-500.0,0.00013698,2]
[332996624,1721737840021,-500.0,0.00013698,2]
[332996625,1721737840032,-500.0,0.00013698,2]
[332996626,1721737840042,-500.0,0.00013698,2]
[332996627,1721737840052,-500.0,0.00013698,2]
[332996628,1721737840064,-500.0,0.00013698,2]
[332996629,1721737840073,-500.0,0.00013698,2]
[332996630,1721737840082,-500.0,0.00013698,2]
[332996631,1721737840092,-500.0,0.00013698,2]
[332996632,1721737840101,-500.0,0.00013698,2]
[332996633,1721737840112,-500.0,0.00013698,2]
[332996634,1721737840121,-287.58,0.00013698,2]
[332996635,1721737840130,-500.0,0.00013698,2]
[332996636,1721737840140,-500.0,0.00013698,2]
[332996637,1721737840150,-500.0,0.00013698,2]
[332996638,1721737840161,-500.0,0.00013698,2]
[332996639,1721737840171,-500.0,0.00013698,2]
[332996640,1721737840181,-500.0,0.00013698,2]
[332996642,1721737840191,-500.0,0.00013698,2]
[332996643,1721737840203,-687.05,0.00013698,2]
[332996644,1721737840212,-500.0,0.00013698,2]
[332996645,1721737840223,-500.0,0.00013698,2]
[332996646,1721737840232,-500.0,0.00013698,2]
[332996647,1721737840242,-500.0,0.00013698,2]
[332996648,1721737840251,-500.0,0.00013698,2]
[332996649,1721737840260,-500.0,0.00013698,2]
[332996650,1721737840270,-500.0,0.00013698,2]
[332996651,1721737840280,-500.0,0.00013698,2]
[332996652,1721737840290,-500.0,0.00013698,2]
[332996653,1721737840300,-500.0,0.00013698,2]
[332996654,1721737840309,-500.0,0.00013698,2]
[332996655,1721737840318,-500.0,0.00013698,2]
[332996656,1721737840330,-500.0,0.00013698,2]
[332996657,1721737840341,-500.38904546,0.00013698,2]
[332996658,1721737840350,-500.0,0.00013698,2]
[332996659,1721737840361,-500.0,0.00013698,2]
[332996660,1721737840372,-500.0,0.00013698,2]
[332996661,1721737840382,-500.0,0.00013698,2]
[332996662,1721737840392,-500.0,0.00013698,2]
[332996663,1721737840401,-525.57,0.00013698,2]
[332996664,1721737840411,-267.77,0.00013698,2]
[332996666,1721737840421,-500.0,0.00013698,2]
[332996667,1721737840430,-500.0,0.00013698,2]
[332996668,1721737840441,-500.0,0.00013698,2]
[332996669,1721737840452,-500.0,0.00013698,2]
[332996670,1721737840466,-500.0,0.00013698,2]
[332996671,1721737840476,-500.0,0.00013698,2]
[332996672,1721737840485,-500.0,0.00013698,2]
[332996673,1721737840495,-500.0,0.00013698,2]
[332996674,1721737840505,-500.0,0.00013698,2]
[332996675,1721737840520,-500.0,0.00013698,2]
[332996676,1721737840529,-500.0,0.00013698,2]
[332996677,1721737840538,-308.33,0.00013698,2]
[332996678,1721737840548,-500.0,0.00013698,2]
[332996679,1721737840559,-500.0,0.00013698,2]
[332996680,1721737840569,-177.98,0.00013698,2]
[332996681,1721737840578,-500.0,0.00013698,2]
[332996682,1721737840590,-500.0,0.00013698,2]
[332996684,1721737840601,-500.0,0.00013698,2]
[332996686,1721737840612,-500.0,0.00013698,2]
[332996687,1721737840622,-501.25,0.00013698,2]
[332996689,1721737840633,-500.0,0.00013698,2]
[332996690,1721737840643,-500.0,0.00013698,2]
[332996691,1721737840652,-500.0,0.00013698,2]
[332996692,1721737840662,-500.0,0.00013698,2]
[332996693,1721737840672,-272.02532838,0.00013698,2]
[332996694,1721737840682,-500.0,0.00013698,2]
[332996695,1721737840691,-500.0,0.00013698,2]
[332996696,1721737840704,-500.0,0.00013698,2]
[332996697,1721737840717,-563.32,0.00013698,2]
[332996698,1721737840727,-299.17462373,0.00013698,2]
[332996699,1721737840738,-500.0,0.00013698,2]
[332996700,1721737840751,-500.0,0.00013698,2]
[332996701,1721737840761,-511.22,0.00013698,2]
[332996702,1721737840771,-500.0,0.00013698,2]
[332996703,1721737840781,-500.0,0.00013698,2]
[332996704,1721737840791,-500.0,0.00013698,2]
[332996705,1721737840800,-500.0,0.00013698,2]
[332996706,1721737840810,-500.0,0.00013698,2]
[332996707,1721737840820,-500.0,0.00013698,2]
[332996708,1721737840830,-500.0,0.00013698,2]
[332996709,1721737840839,-500.0,0.00013698,2]
[332996710,1721737840849,-500.0,0.00013698,2]
[332996711,1721737840859,-500.0,0.00013698,2]
[332996712,1721737840869,-633.7085946,0.00013698,2]
[332996713,1721737840878,-614.25703442,0.00013698,2]
[332996714,1721737840889,-500.0,0.00013698,2]
[332996715,1721737840898,-500.0,0.00013698,2]
[332996716,1721737840908,-500.0,0.00013698,2]
[332996717,1721737840918,-312.18149942,0.00013698,2]
[332996718,1721737840927,-302.04338703,0.00013698,2]
[332996719,1721737840936,-500.0,0.00013698,2]
[332996720,1721737840946,-500.0,0.00013698,2]
[332996721,1721737840959,-500.0,0.00013698,2]
[332996722,1721737840969,-500.0,0.00013698,2]
[332996723,1721737840978,-500.0,0.00013698,2]
[332996724,1721737840987,-500.0,0.00013698,2]
[332996725,1721737840998,-500.0,0.00013698,2]
[332996726,1721737841007,-500.0,0.00013698,2]
[332996727,1721737841017,-500.0,0.00013698,2]
[332996728,1721737841026,-500.0,0.00013698,2]
[332996729,1721737841035,-500.0,0.00013698,2]
[332996730,1721737841045,-500.0,0.00013698,2]
[332996731,1721737841054,-500.0,0.00013698,2]
[332996732,1721737841063,-500.0,0.00013698,2]
[332996733,1721737841073,-500.0,0.00013698,2]
[332996734,1721737841082,-500.0,0.00013698,2]
[332996735,1721737841091,-500.0,0.00013698,2]
[332996736,1721737841101,-500.0,0.00013698,2]
[332996737,1721737841110,-500.0,0.00013698,2]
[332996738,1721737841119,-500.0,0.00013698,2]
[332996739,1721737841130,-500.0,0.00013698,2]
[332996740,1721737841141,-500.0,0.00013698,2]
[332996741,1721737841153,-500.0,0.00013698,2]
[332996742,1721737841164,-612.79,0.00013698,2]
[332996743,1721737841173,-500.0,0.00013698,2]
[332996744,1721737841183,-500.0,0.00013698,2]
[332996745,1721737841192,-500.0,0.00013698,2]
[332996746,1721737841202,-500.0,0.00013698,2]
[332996747,1721737841212,-500.0,0.00013698,2]
[332996748,1721737841221,-500.0,0.00013698,2]
[332996749,1721737841231,-500.0,0.00013698,2]
[332996750,1721737841240,-500.0,0.00013698,2]
[332996751,1721737841250,-500.0,0.00013698,2]
[332996752,1721737841259,-500.0,0.00013698,2]
[332996753,1721737841269,-500.0,0.00013698,2]
[332996754,1721737841278,-500.0,0.00013698,2]
[332996755,1721737841287,-500.0,0.00013698,2]
[332996756,1721737841296,-604.75,0.00013698,2]
[332996757,1721737841306,-163.08748387,0.00013698,2]
[332996758,1721737841315,-500.0,0.00013698,2]
[332996759,1721737841324,-244.53,0.00013698,2]
[332996760,1721737841334,-500.0,0.00013698,2]
[332996761,1721737841342,-500.0,0.00013698,2]
[332996762,1721737841352,-500.0,0.00013698,2]
[332996763,1721737841363,-500.0,0.00013698,2]
[332996764,1721737841373,-500.0,0.00013698,2]
[332996765,1721737841382,-247.6,0.00013698,2]
[332996766,1721737841391,-500.0,0.00013698,2]
[332996767,1721737841400,-500.0,0.00013698,2]
[332996768,1721737841410,-500.0,0.00013698,2]
[332996769,1721737841420,-500.0,0.00013698,2]
[332996770,1721737841431,-500.0,0.00013698,2]
[332996771,1721737841441,-500.0,0.00013698,2]
[332996772,1721737841454,-500.0,0.00013698,2]
[332996773,1721737841466,-428.85628937,0.00013698,2]
[332996774,1721737841475,-500.0,0.00013698,2]
[332996775,1721737841484,-500.0,0.00013698,2]
[332996776,1721737841493,-500.0,0.00013698,2]
[332996777,1721737841503,-500.0,0.00013698,2]
[332996778,1721737841514,-500.0,0.00013698,2]
[332996779,1721737841523,-301.15,0.00013698,2]
[332996780,1721737841532,-500.0,0.00013698,2]
[332996781,1721737841542,-500.0,0.00013698,2]
[332996782,1721737841553,-500.0,0.00013698,2]
[332996783,1721737841562,-196.0887619,0.00013698,2]
[332996784,1721737841572,-500.0,0.00013698,2]
[332996785,1721737841581,-500.0,0.00013698,2]
[332996786,1721737841594,-500.0,0.00013698,2]
[332996787,1721737841604,-500.0,0.00013698,2]
[332996788,1721737841613,-500.0,0.00013698,2]
[332996789,1721737841623,-500.0,0.00013698,2]
[332996790,1721737841633,-500.0,0.00013698,2]
[332996791,1721737841643,-500.0,0.00013698,2]
[332996792,1721737841653,-287.80781033,0.00013698,2]
[332996793,1721737841662,-500.0,0.00013698,2]
[332996794,1721737841672,-368.02272129,0.00013698,2]
[332996795,1721737841682,-500.0,0.00013698,2]
[332996796,1721737841692,-500.0,0.00013698,2]
[332996797,1721737841702,-500.0,0.00013698,2]
[332996798,1721737841714,-500.0,0.00013698,2]
[332996799,1721737841724,-500.0,0.00013698,2]
[332996800,1721737841735,-500.0,0.00013698,2]
[332996801,1721737841745,-500.0,0.00013698,2]
[332996802,1721737841758,-500.0,0.00013698,2]
[332996803,1721737841768,-500.0,0.00013698,2]
[332996804,1721737841778,-502.99870871,0.00013698,2]
[332996805,1721737841788,-500.0,0.00013698,2]
[332996806,1721737841797,-500.0,0.00013698,2]
[332996807,1721737841807,-500.0,0.00013698,2]
[332996808,1721737841817,-500.0,0.00013698,2]
[332996809,1721737841827,-500.0,0.00013698,2]
[332996810,1721737841837,-500.0,0.00013698,2]
[332996811,1721737841847,-258.83,0.00013698,2]
[332996812,1721737841857,-500.0,0.00013698,2]
[332996813,1721737841867,-500.0,0.00013698,2]
[332996814,1721737841877,-216.78,0.00013698,2]
[332996815,1721737841886,-500.0,0.00013698,2]
[332996816,1721737841896,-500.0,0.00013698,2]
[332996817,1721737841906,-530.16,0.00013698,2]
[332996818,1721737841915,-500.0,0.00013698,2]
[332996819,1721737841926,-500.0,0.00013698,2]
[332996820,1721737841935,-500.0,0.00013698,2]
[332996821,1721737841945,-500.0,0.00013698,2]
[332996822,1721737841959,-500.0,0.00013698,2]
[332996823,1721737841968,-500.0,0.00013698,2]
[332996824,1721737841977,-500.0,0.00013698,2]
[332996825,1721737841986,-500.0,0.00013698,2]
[332996826,1721737841995,-500.0,0.00013698,2]
[332996827,1721737842005,-500.0,0.00013698,2]
[332996828,1721737842014,-500.0,0.00013698,2]
[332996829,1721737842024,-500.0,0.00013698,2]
[332996830,1721737842034,-500.0,0.00013698,2]
[332996831,1721737842046,-500.0,0.00013698,2]
[332996832,1721737842056,-500.0,0.00013698,2]
[332996833,1721737842068,-502.50530035,0.00013698,2]
[332996834,1721737842077,-500.0,0.00013698,2]
[332996835,1721737842086,-500.0,0.00013698,2]
[332996836,1721737842096,-635.9856,0.00013698,2]
[332996837,1721737842106,-500.0,0.00013698,2]
[332996838,1721737842115,-265.0,0.00013698,2]
[332996839,1721737842125,-500.0,0.00013698,2]
[332996840,1721737842136,-500.0,0.00013698,2]
[332996841,1721737842146,-500.0,0.00013698,2]
[332996842,1721737842157,-500.0,0.00013698,2]
[332996843,1721737842166,-500.0,0.00013698,2]
[332996844,1721737842175,-500.0,0.00013698,2]
[332996845,1721737842185,-500.0,0.00013698,2]
[332996846,1721737842194,-500.0,0.00013698,2]
[332996847,1721737842206,-500.0,0.00013698,2]
[332996848,1721737842215,-500.0,0.00013698,2]
[332996849,1721737842226,-500.0,0.00013698,2]
[332996850,1721737842237,-500.0,0.00013698,2]
[332996851,1721737842249,-500.0,0.00013698,2]
[332996852,1721737842258,-500.0,0.00013698,2]
[332996853,1721737842267,-500.0,0.00013698,2]
[332996854,1721737842276,-500.0,0.00013698,2]
[332996855,1721737842285,-500.0,0.00013698,2]
[332996856,1721737842294,-500.0,0.00013698,2]
[332996857,1721737842303,-500.0,0.00013698,2]
[332996858,1721737842312,-500.0,0.00013698,2]
[332996859,1721737842322,-500.0,0.00013698,2]
[332996860,1721737842332,-500.0,0.00013698,2]
[332996861,1721737842344,-500.0,0.00013698,2]
[332996862,1721737842355,-500.0,0.00013698,2]
[332996863,1721737842365,-500.0,0.00013698,2]
[332996864,1721737842374,-500.0,0.00013698,2]
[332996865,1721737842384,-500.0,0.00013698,2]
[332996866,1721737842393,-500.0,0.00013698,2]
[332996867,1721737842403,-500.0,0.00013698,2]
[332996868,1721737842412,-500.0,0.00013698,2]
[332996869,1721737842421,-535.32,0.00013698,2]
[332996870,1721737842431,-500.0,0.00013698,2]
[332996871,1721737842443,-500.0,0.00013698,2]
[332996872,1721737842456,-500.0,0.00013698,2]